fUSD/lending_fUSD_20240924
["ID","MTS","AMOUNT","RATE_DAILY","PERIOD"]
[339045004,1727172660727,-500.0,0.00012995,2]
[339045005,1727172660736,-500.0,0.00012995,2]
[339045006,1727172660746,-500.0,0.00012995,2]
[339045007,1727172660756,-500.0,0.00012995,2]
[339045008,1727172660766,-500.0,0.00012995,2]
[339045009,1727172660776,-500.0,0.00012995,2]
[339045010,1727172660786,-270.33912979,0.00012995,2]
[339045011,1727172660797,-501.61285807,0.00012995,2]
[339045012,1727172660807,-500.0,0.00012995,2]
[339045013,1727172660817,-500.0,0.00012995,2]
[339045014,1727172660826,-500.0,0.00012995,2]
[339045015,1727172660836,-500.0,0.00012995,2]
[339045016,1727172660846,-500.0,0.00012995,2]
[339045017,1727172660855,-500.0,0.00012995,2]
[339045018,1727172660864,-500.0,0.00012995,2]
[339045019,1727172660874,-501.89258823,0.00012995,2]
[339045020,1727172660884,-174.74964721,0.00012995,2]
[339045021,1727172660893,-500.0,0.00012995,2]
[339045022,1727172660903,-500.0,0.00012995,2]
[339045023,1727172660912,-500.0,0.00012995,2]
[339045024,1727172660922,-500.0,0.00012995,2]
[339045025,1727172660931,-500.0,0.00012995,2]
[339045026,1727172660941,-532.04787259,0.00012995,2]
[339045027,1727172660950,-500.0,0.00012995,2]
[339045028,1727172660960,-1145.8,0.00012995,2]
[339045029,1727172660969,-1145.8,0.00012995,2]
[339045030,1727172660979,-1145.8,0.00012995,2]
[339045031,1727172660988,-1145.8,0.00012995,2]
[339045032,1727172660997,-500.0,0.00012995,2]
[339045033,1727172661006,-500.0,0.00012995,2]
[339045034,1727172661016,-500.0,0.00012995,2]
[339045035,1727172661026,-500.0,0.00012995,2]
[339045036,1727172661036,-500.0,0.00012995,2]
[339045037,1727172661045,-500.0,0.00012995,2]
[339045038,1727172661055,-500.0,0.00012995,2]
[339045039,1727172661064,-500.0,0.00012995,2]
[339045040,1727172661074,-502.32759128,0.00012995,2]
[339045041,1727172661083,-500.0,0.00012995,2]
[339045042,1727172661092,-203.44584939,0.00012995,2]
[339045043,1727172661102,-500.0,0.00012995,2]
[339045044,1727172661111,-502.97966008,0.00012995,2]
[339045045,1727172661122,-500.0,0.00012995,2]
[339045046,1727172661133,-500.0,0.00012995,2]
[339045047,1727172661142,-500.0,0.00012995,2]
[339045048,1727172661152,-500.0,0.00012995,2]
[339045049,1727172661162,-500.0,0.00012995,2]
[339045050,1727172661172,-500.0,0.00012995,2]
[339045051,1727172661182,-500.0,0.00012995,2]
[339045052,1727172661193,-500.0,0.00012995,2]
[339045053,1727172661204,-4830.34,0.00012995,2]
[339045054,1727172661215,-4830.34,0.00012995,2]
[339045055,1727172661228,-500.0,0.00012995,2]
[339045056,1727172661238,-3835.77760153,0.00012995,2]
[339045057,1727172661642,-700.0,0.00012994,2]
[339045058,1727172662549,-1000.0,0.00012511,2]
[339045059,1727172662558,-207.18361201,0.00012896,2]
[339045060,1727172662568,-282.631059,0.00012899,2]
[339045061,1727172662580,-282.631059,0.00012992,2]
[339045062,1727172662590,-1467.88,0.00012994,2]
[339045063,1727172662599,-282.631059,0.00012994,2]
[339045064,1727172662608,-1383.72177099,0.00012994,2]
[339045065,1727172667855,500.0,0.00022,120]
[339045066,1727172805796,2000.0,0.00022,120]
[339045067,1727172844096,158.68,9.863e-05,2]
[339045068,1727173186267,170.84,0.00010959,2]
[339045069,1727173206132,501.31590544,0.00022,120]
[339045070,1727173268054,500.0,0.00022,120]
[339045071,1727173405118,2000.0,0.00022,120]
[339045074,1727173627198,800.0,0.00011048,2]
[339045077,1727173660873,510.0,0.00021917,120]
[339045082,1727173714195,192.54,0.00010959,2]
[339045084,1727173735906,174.44,9.17e-05,2]
[339045090,1727173772658,150.0,0.0001,2]
[339045094,1727173798329,284.24,0.00010988,2]
[339045095,1727173806538,250.0,0.00011001,2]
[339045107,1727173831481,-151.38,0.00011333,2]
[339045109,1727173831491,-163.9,0.00011343,2]
[339045111,1727173831501,-49.78759219,0.00011362,2]
[339045120,1727173831634,-114.11240781,0.00011362,2]
[339045121,1727173831645,-163.9,0.00011381,2]
[339045122,1727173831657,-163.9,0.000114,2]
[339045123,1727173831667,-1702.65242174,0.00011424,2]
[339045124,1727173831676,-10655.79254926,0.00011425,2]
[339045125,1727173831729,-739.32803792,0.00011425,2]
[339045126,1727173831740,-3007.4,0.00011425,2]
[339045127,1727173831763,-7069.47941282,0.00011425,2]
[339045128,1727173831773,-174.44,0.00011434,2]
[339045129,1727173831783,-200.0,0.00011465,2]
[339045130,1727173831793,-250.0,0.00011469,2]
[339045131,1727173831802,-386.59,0.00011469,2]
[339045132,1727173831812,-499.99,0.00011469,2]
[339045133,1727173831822,-172.73,0.00011471,2]
[339045134,1727173831832,-150.0,0.00011541,2]
[339045135,1727173831842,-299.99,0.00011542,2]
[339045136,1727173831852,-5466.95628998,0.00011542,2]
[339045137,1727173831865,-1440.26954301,0.00011542,2]
[339045183,1727173837674,-867.7,0.00011469,2]
[339045184,1727173837685,-1121.24713654,0.00011542,2]
[339045185,1727173837696,-837.57278246,0.00011542,2]
[339045186,1727173837712,-1133.94424801,0.00011542,2]
[339045187,1727173837721,-1766.05575199,0.00011632,2]
[339045190,1727173837891,-33.16948606,0.00011632,2]
[339045191,1727173837901,-2916.71760368,0.00011642,2]
[339045192,1727173837912,-1930.84869632,0.00011642,2]
[339045193,1727173837923,-150.0,0.00011688,2]
[339045194,1727173837932,-150.0,0.00011688,2]
[339045195,1727173837942,-150.0,0.00011688,2]
[339045196,1727173837951,-150.0,0.00011688,2]
[339045197,1727173837961,-233.31986889,0.000117,2]
[339045198,1727173837971,-150.0,0.00011753,2]
[339045199,1727173837980,-35.71852453,0.000118,2]
[339045200,1727173837992,-869.61587547,0.000118,2]
[339045201,1727173838003,-150.0,0.00011818,2]
[339045202,1727173838013,-150.0,0.00011818,2]
[339045203,1727173838023,-233.31986881,0.00011833,2]
[339045204,1727173838033,-163.46,0.00011836,2]
[339045205,1727173838042,-150.0,0.00011882,2]
[339045206,1727173838052,-150.0,0.00011947,2]
[339045207,1727173838063,-150.0,0.00011947,2]
[339045208,1727173838073,-233.31986881,0.00011967,2]
[339045209,1727173838083,-600.0,0.00012,4]
[339045211,1727173838093,-150.0,0.00012012,2]
[339045213,1727173838104,-150.0,0.00012077,2]
[339045214,1727173838113,-150.0,0.00012077,2]
[339045215,1727173838123,-233.31986881,0.000121,2]
[339045216,1727173838133,-1300.0,0.000121,4]
[339045217,1727173838142,-150.0,0.00012121,2]
[339045218,1727173838153,-150.0,0.00012142,2]
[339045220,1727173838164,-29.29168339,0.00012172,2]
[339045222,1727173838181,-2470.70831661,0.00012172,2]
[339045224,1727173838191,-1338.99168339,0.000122,4]
[339045228,1727173838212,-661.00831661,0.000122,4]
[339045230,1727173838222,-150.0,0.00012207,2]
[339045232,1727173838232,-150.0,0.00012207,2]
[339045234,1727173838242,-233.31986881,0.00012233,2]
[339045236,1727173838252,-710.44995138,0.00012249,2]
[339045238,1727173838262,-150.0,0.00012272,2]
[339045240,1727173838272,-2700.0,0.000123,4]
[339045242,1727173838281,-150.0,0.00012337,2]
[339045244,1727173838291,-150.0,0.00012337,2]
[339045246,1727173838300,-233.31986881,0.00012367,2]
[339045248,1727173838311,-3400.0,0.000124,4]
[339045250,1727173838321,-150.0,0.00012402,2]
[339045252,1727173838331,-800.0,0.00012429,2]
[339045254,1727173838340,-150.0,0.00012467,2]
[339045256,1727173838350,-150.0,0.00012467,2]
[339045258,1727173838360,-233.31986881,0.000125,2]
[339045260,1727173838370,-600.0,0.000125,4]
[339045262,1727173838380,-89.96875996,0.00012511,2]
[339045346,1727173839514,-12163.20114004,0.00012511,2]
[339045347,1727173839524,-150.0,0.00012532,2]
[339045348,1727173839534,-154.05,0.00012541,2]
[339045349,1727173839544,-150.0,0.00012553,2]
[339045350,1727173839554,-150.0,0.00012597,2]
[339045351,1727173839564,-150.0,0.00012597,2]
[339045352,1727173839575,-600.0,0.000126,4]
[339045353,1727173839585,-255.0,0.00012602,2]
[339045354,1727173839595,-233.31986881,0.00012633,2]
[339045355,1727173839605,-150.0,0.00012662,2]
[339045356,1727173839614,-600.0,0.000127,4]
[339045357,1727173839624,-150.0,0.00012727,2]
[339045358,1727173839634,-150.0,0.00012727,2]
[339045359,1727173839644,-150.0,0.00012742,2]
[339045360,1727173839656,-330.96523758,0.00012745,2]
[339045361,1727173839667,-233.31986881,0.00012767,2]
[339045362,1727173839676,-150.0,0.00012783,2]
[339045363,1727173839686,-150.0,0.00012792,2]
[339045364,1727173839696,-5317.98106535,0.00012795,2]
[339045365,1727173839706,-28487.8729261,0.00012798,2]
[339045366,1727173839716,-600.0,0.000128,4]
[339045367,1727173839726,-150.0,0.00012856,2]
[339045368,1727173839736,-150.0,0.00012856,2]
[339045369,1727173839745,-1748.27828253,0.0001287,2]
[339045370,1727173839755,-500.0,0.00012873,2]
[339045371,1727173839765,-500.0,0.00012876,2]
[339045372,1727173839775,-500.0,0.00012876,2]
[339045373,1727173839784,-500.0,0.00012876,2]
[339045374,1727173839794,-500.0,0.00012876,2]
[339045375,1727173839804,-498.6995787,0.00012876,2]
[339045376,1727173839815,-500.0,0.00012876,2]
[339045378,1727173839824,-500.0,0.00012876,2]
[339045380,1727173839834,-500.0,0.00012876,2]
[339045382,1727173839844,-500.0,0.00012876,2]
[339045384,1727173839854,-500.0,0.00012876,2]
[339045386,1727173839865,-500.0,0.00012876,2]
[339045388,1727173839875,-500.0,0.00012876,2]
[339045390,1727173839884,-209.56586854,0.00012876,2]
[339045392,1727173839894,-500.0,0.00012876,2]
[339045394,1727173839905,-500.0,0.00012876,2]
[339045396,1727173839915,-500.0,0.00012876,2]
[339045398,1727173839925,-500.0,0.00012876,2]
[339045400,1727173839935,-500.0,0.00012876,2]
[339045402,1727173839944,-500.0,0.00012876,2]
[339045404,1727173839955,-500.0,0.00012876,2]
[339045406,1727173839965,-974.8,0.00012876,2]
[339045408,1727173839974,-500.0,0.00012876,2]
[339045410,1727173839984,-500.0,0.00012876,2]
[339045412,1727173839993,-500.0,0.00012876,2]
[339045414,1727173840004,-583.79114638,0.00012876,2]
[339045416,1727173840014,-500.0,0.00012876,2]
[339045418,1727173840023,-500.0,0.00012876,2]
[339045420,1727173840033,-500.0,0.00012876,2]
[339045422,1727173840042,-500.75,0.00012876,2]
[339045424,1727173840052,-500.0,0.00012876,2]
[339045426,1727173840062,-630.21,0.00012876,2]
[339045428,1727173840071,-500.0,0.00012876,2]
[339045430,1727173840081,-500.0,0.00012876,2]
[339045432,1727173840091,-500.0,0.00012876,2]
[339045434,1727173840100,-500.0,0.00012876,2]
[339045436,1727173840109,-500.0,0.00012876,2]
[339045438,1727173840119,-500.0,0.00012876,2]
[339045440,1727173840128,-500.0,0.00012876,2]
[339045442,1727173840138,-500.0,0.00012876,2]
[339045444,1727173840148,-500.0,0.00012876,2]
[339045446,1727173840159,-500.0,0.00012876,2]
[339045448,1727173840168,-500.0,0.00012876,2]
[339045450,1727173840178,-500.0,0.00012876,2]
[339045452,1727173840188,-500.0,0.00012876,2]
[339045454,1727173840198,-500.0,0.00012876,2]
[339045456,1727173840208,-500.0,0.00012876,2]
[339045458,1727173840217,-500.0,0.00012876,2]
[339045460,1727173840227,-500.0,0.00012876,2]
[339045462,1727173840236,-500.0,0.00012876,2]
[339045464,1727173840248,-500.0,0.00012876,2]
[339045466,1727173840260,-500.0,0.00012876,2]
[339045468,1727173840270,-500.0,0.00012876,2]
[339045470,1727173840280,-500.0,0.00012876,2]
[339045472,1727173840290,-500.0,0.00012876,2]
[339045474,1727173840300,-500.0,0.00012876,2]
[339045477,1727173840311,-500.0,0.00012876,2]
[339045479,1727173840321,-500.0,0.00012876,2]
[339045481,1727173840330,-500.0,0.00012876,2]
[339045483,1727173840340,-500.0,0.00012876,2]
[339045485,1727173840349,-500.0,0.00012876,2]
[339045486,1727173840359,-500.0,0.00012876,2]
[339045488,1727173840368,-503.36041854,0.00012876,2]
[339045491,1727173840378,-500.0,0.00012876,2]
[339045493,1727173840388,-500.0,0.00012876,2]
[339045495,1727173840397,-500.0,0.00012876,2]
[339045497,1727173840407,-500.0,0.00012876,2]
[339045498,1727173840416,-632.92,0.00012876,2]
[339045500,1727173840426,-500.0,0.00012876,2]
[339045502,1727173840435,-500.0,0.00012876,2]
[339045505,1727173840446,-500.0,0.00012876,2]
[339045506,1727173840456,-500.0,0.00012876,2]
[339045509,1727173840466,-500.0,0.00012876,2]
[339045511,1727173840475,-500.0,0.00012876,2]
[339045512,1727173840485,-500.0,0.00012876,2]
[339045514,1727173840495,-500.0,0.00012876,2]
[339045517,1727173840513,-500.0,0.00012876,2]
[339045520,1727173840524,-500.0,0.00012876,2]
[339045522,1727173840534,-500.0,0.00012876,2]
[339045524,1727173840543,-500.0,0.00012876,2]
[339045526,1727173840553,-500.0,0.00012876,2]
[339045528,1727173840563,-500.0,0.00012876,2]
[339045530,1727173840572,-500.0,0.00012876,2]
[339045532,1727173840583,-500.0,0.00012876,2]
[339045534,1727173840593,-500.0,0.00012876,2]
[339045536,1727173840603,-500.0,0.00012876,2]
[339045538,1727173840613,-500.0,0.00012876,2]
[339045540,1727173840623,-500.0,0.00012876,2]
[339045542,1727173840633,-500.0,0.00012876,2]
[339045544,1727173840642,-1968.73,0.00012876,2]
[339045546,1727173840653,-500.0,0.00012876,2]
[339045549,1727173840667,-500.0,0.00012876,2]
[339045551,1727173840678,-500.0,0.00012876,2]
[339045553,1727173840689,-500.0,0.00012876,2]
[339045555,1727173840699,-2303.6,0.00012876,2]
[339045557,1727173840708,-500.0,0.00012876,2]
[339045559,1727173840718,-504.78797891,0.00012876,2]
[339045561,1727173840728,-500.0,0.00012876,2]
[339045563,1727173840738,-500.0,0.00012876,2]
[339045565,1727173840747,-152.57704298,0.00012876,2]
[339045567,1727173840760,-150.0,0.00012876,2]
[339045569,1727173840774,-505.03492812,0.00012876,2]
[339045571,1727173840785,-907.59,0.00012876,2]
[339045573,1727173840795,-500.0,0.00012876,2]
[339045575,1727173840804,-531.21,0.00012876,2]
[339045577,1727173840815,-500.0,0.00012876,2]
[339045579,1727173840826,-500.0,0.00012876,2]
[339045581,1727173840835,-629.57055105,0.00012876,2]
[339045583,1727173840845,-500.0,0.00012876,2]
[339045585,1727173840855,-504.8337596,0.00012876,2]
[339045587,1727173840864,-500.0,0.00012876,2]
[339045589,1727173840873,-500.0,0.00012876,2]
[339045591,1727173840883,-885.46,0.00012876,2]
[339045593,1727173840893,-500.0,0.00012876,2]
[339045595,1727173840903,-499.95930949,0.00012876,2]
[339045597,1727173840912,-719.14,0.00012876,2]
[339045599,1727173840922,-502.98328374,0.00012876,2]
[339045601,1727173840932,-500.0,0.00012876,2]
[339045604,1727173840942,-500.0,0.00012876,2]
[339045605,1727173840952,-500.0,0.00012876,2]
[339045608,1727173840962,-500.0,0.00012876,2]
[339045610,1727173840971,-500.0,0.00012876,2]
[339045612,1727173840981,-500.0,0.00012876,2]
[339045613,1727173840991,-500.0,0.00012876,2]
[339045616,1727173841001,-567.16,0.00012876,2]
[339045618,1727173841012,-500.0,0.00012876,2]
[339045620,1727173841022,-500.0,0.00012876,2]
[339045622,1727173841031,-256.59320159,0.00012876,2]
[339045624,1727173841041,-500.0,0.00012876,2]
[339045626,1727173841051,-500.0,0.00012876,2]
[339045628,1727173841060,-754.46,0.00012876,2]
[339045630,1727173841070,-500.0,0.00012876,2]
[339045632,1727173841079,-695.37,0.00012876,2]
[339045652,1727173841345,-500.0,0.00012876,2]
[339045655,1727173841357,-500.0,0.00012876,2]
[339045657,1727173841366,-500.0,0.00012876,2]
[339045659,1727173841376,-500.0,0.00012876,2]
[339045661,1727173841385,-500.0,0.00012876,2]
[339045663,1727173841396,-824.67,0.00012876,2]
[339045665,1727173841405,-500.0,0.00012876,2]
[339045667,1727173841415,-500.0,0.00012876,2]
[339045669,1727173841424,-500.0,0.00012876,2]
[339045671,1727173841434,-432.83940002,0.00012876,2]
[339045673,1727173841444,-500.0,0.00012876,2]
[339045674,1727173841453,-531.92911802,0.00012876,2]
[339045676,1727173841463,-500.0,0.00012876,2]
[339045678,1727173841472,-500.0,0.00012876,2]
[339045680,1727173841481,-500.0,0.00012876,2]
[339045682,1727173841492,-500.0,0.00012876,2]
[339045684,1727173841502,-500.0,0.00012876,2]
[339045685,1727173841512,-245.42951204,0.00012876,2]
[339045687,1727173841522,-500.0,0.00012876,2]
[339045689,1727173841531,-500.0,0.00012876,2]
[339045691,1727173841541,-500.0,0.00012876,2]
[339045693,1727173841551,-500.0,0.00012876,2]
[339045695,1727173841560,-500.0,0.00012876,2]
[339045697,1727173841571,-500.0,0.00012876,2]
[339045699,1727173841581,-500.0,0.00012876,2]
[339045701,1727173841591,-785.85,0.00012876,2]
[339045703,1727173841600,-500.0,0.00012876,2]
[339045705,1727173841610,-500.0,0.00012876,2]
[339045707,1727173841619,-1226.42,0.00012876,2]
[339045709,1727173841629,-627.53055053,0.00012876,2]
[339045711,1727173841638,-500.0,0.00012876,2]
[339045713,1727173841648,-500.0,0.00012876,2]
[339045715,1727173841661,-500.0,0.00012876,2]
[339045717,1727173841671,-500.0,0.00012876,2]
[339045719,1727173841680,-500.0,0.00012876,2]
[339045721,1727173841690,-500.0,0.00012876,2]
[339045723,1727173841701,-500.0,0.00012876,2]
[339045724,1727173841710,-500.0,0.00012876,2]
[339045726,1727173841719,-500.0,0.00012876,2]
[339045728,1727173841730,-500.0,0.00012876,2]
[339045730,1727173841739,-504.24585324,0.00012876,2]
[339045732,1727173841749,-500.0,0.00012876,2]
[339045734,1727173841759,-500.0,0.00012876,2]
[339045736,1727173841769,-926.45,0.00012876,2]
[339045738,1727173841779,-500.0,0.00012876,2]
[339045740,1727173841789,-500.0,0.00012876,2]
[339045742,1727173841799,-736.09,0.00012876,2]
[339045744,1727173841809,-500.0,0.00012876,2]
[339045746,1727173841818,-500.0,0.00012876,2]
[339045748,1727173841828,-500.0,0.00012876,2]
[339045750,1727173841838,-500.0,0.00012876,2]
[339045752,1727173841847,-500.0,0.00012876,2]
[339045754,1727173841856,-2393.12,0.00012876,2]
[339045756,1727173841866,-500.0,0.00012876,2]
[339045758,1727173841876,-500.0,0.00012876,2]
[339045761,1727173841885,-500.0,0.00012876,2]
[339045763,1727173841896,-500.0,0.00012876,2]
[339045765,1727173841907,-500.0,0.00012876,2]
[339045766,1727173841916,-500.0,0.00012876,2]
[339045768,1727173841925,-633.74,0.00012876,2]
[339045770,1727173841935,-500.0,0.00012876,2]
[339045772,1727173841945,-500.0,0.00012876,2]
[339045774,1727173841954,-500.0,0.00012876,2]
[339045776,1727173841964,-500.0,0.00012876,2]
[339045778,1727173841973,-500.0,0.00012876,2]
[339045780,1727173841983,-500.0,0.00012876,2]
[339045782,1727173841993,-500.0,0.00012876,2]
[339045784,1727173842003,-500.0,0.00012876,2]
[339045786,1727173842013,-500.0,0.00012876,2]
[339045788,1727173842023,-197.77429112,0.00012876,2]
[339045790,1727173842033,-500.0,0.00012876,2]
[339045792,1727173842042,-313.13947793,0.00012876,2]
[339045794,1727173842051,-500.0,0.00012876,2]
[339045796,1727173842061,-500.0,0.00012876,2]
[339045798,1727173842071,-500.0,0.00012876,2]
[339045800,1727173842080,-1347.32,0.00012876,2]
[339045802,1727173842090,-233.81048977,0.00012876,2]
[339045804,1727173842099,-500.0,0.00012876,2]
[339045805,1727173842109,-500.0,0.00012876,2]
[339045807,1727173842118,-500.0,0.00012876,2]
[339045809,1727173842128,-500.0,0.00012876,2]
[339045811,1727173842138,-668.38,0.00012876,2]
[339045813,1727173842147,-500.0,0.00012876,2]
[339045815,1727173842157,-632.17981323,0.00012876,2]
[339045817,1727173842167,-500.0,0.00012876,2]
[339045819,1727173842176,-500.0,0.00012876,2]
[339045821,1727173842186,-500.0,0.00012876,2]
[339045823,1727173842195,-500.0,0.00012876,2]
[339045825,1727173842205,-1232.84,0.00012876,2]
[339045827,1727173842214,-500.0,0.00012876,2]
[339045829,1727173842223,-3462.93,0.00012876,2]
[339045831,1727173842233,-500.0,0.00012876,2]
[339045833,1727173842242,-500.0,0.00012876,2]
[339045835,1727173842251,-500.0,0.00012876,2]
[339045837,1727173842261,-500.0,0.00012876,2]
[339045839,1727173842271,-500.0,0.00012876,2]
[339045840,1727173842279,-500.0,0.00012876,2]
[339045842,1727173842289,-500.0,0.00012876,2]
[339045844,1727173842298,-1332.38,0.00012876,2]
[339045846,1727173842307,-332.43989793,0.00012876,2]
[339045848,1727173842317,-2393.49,0.00012876,2]
[339045851,1727173842326,-500.0,0.00012876,2]
[339045854,1727173842335,-500.0,0.00012876,2]
[339045857,1727173842344,-500.0,0.00012876,2]
[339045859,1727173842354,-500.0,0.00012876,2]
[339045861,1727173842363,-500.0,0.00012876,2]
[339045863,1727173842372,-500.0,0.00012876,2]
[339045865,1727173842381,-500.0,0.00012876,2]
[339045867,1727173842390,-500.0,0.00012876,2]
[339045870,1727173842400,-3434.81,0.00012876,2]
[339045872,1727173842409,-500.0,0.00012876,2]
[339045874,1727173842418,-2239.52,0.00012876,2]
[339045876,1727173842427,-500.0,0.00012876,2]
[339045878,1727173842436,-500.0,0.00012876,2]
[339045880,1727173842445,-500.0,0.00012876,2]
[339045882,1727173842455,-1927.13,0.00012876,2]
[339045884,1727173842465,-500.0,0.00012876,2]
[339045886,1727173842475,-500.0,0.00012876,2]
[339045890,1727173842483,-500.0,0.00012876,2]
[339045894,1727173842492,-603.60065226,0.00012876,2]
[339045898,1727173842501,-542.27,0.00012876,2]
[339045901,1727173842511,-500.0,0.00012876,2]
[339045906,1727173842521,-500.0,0.00012876,2]
[339045911,1727173842530,-184.73527811,0.00012876,2]
[339045915,1727173842540,-500.0,0.00012876,2]
[339045918,1727173842549,-756.81,0.00012876,2]
[339045921,1727173842558,-500.0,0.00012876,2]
[339045923,1727173842568,-500.0,0.00012876,2]
[339045925,1727173842577,-500.0,0.00012876,2]
[339045927,1727173842586,-500.0,0.00012876,2]
[339045929,1727173842596,-500.0,0.00012876,2]
[339045931,1727173842605,-500.0,0.00012876,2]
[339045933,1727173842614,-500.0,0.00012876,2]
[339045935,1727173842623,-743.63,0.00012876,2]
[339045937,1727173842633,-519.73,0.00012876,2]
[339045939,1727173842642,-1568.78,0.00012876,2]
[339045941,1727173842652,-2139.03,0.00012876,2]
[339045943,1727173842661,-500.0,0.00012876,2]
[339045945,1727173842670,-500.0,0.00012876,2]
[339045947,1727173842680,-1781.6,0.00012876,2]
[339045949,1727173842689,-498.69858557,0.00012876,2]
[339045951,1727173842698,-500.0,0.00012876,2]
[339045953,1727173842708,-500.0,0.00012876,2]
[339045954,1727173842717,-500.0,0.00012876,2]
[339045955,1727173842726,-500.0,0.00012876,2]
[339045956,1727173842736,-500.0,0.00012876,2]
[339045957,1727173842745,-504.34157462,0.00012876,2]
[339045958,1727173842754,-500.0,0.00012876,2]
[339045959,1727173842764,-500.0,0.00012876,2]
[339045960,1727173842773,-500.0,0.00012876,2]
[339045961,1727173842782,-500.0,0.00012876,2]
[339045962,1727173842791,-500.0,0.00012876,2]
[339045963,1727173842800,-500.0,0.00012876,2]
[339045964,1727173842809,-500.0,0.00012876,2]
[339045966,1727173842818,-500.0,0.00012876,2]
[339045968,1727173842828,-500.0,0.00012876,2]
[339045970,1727173842837,-403.47410913,0.00012876,2]
[339045972,1727173842847,-500.0,0.00012876,2]
[339045974,1727173842856,-500.0,0.00012876,2]
[339045976,1727173842865,-500.0,0.00012876,2]
[339045978,1727173842875,-500.0,0.00012876,2]
[339045980,1727173842885,-500.0,0.00012876,2]
[339045982,1727173842894,-500.0,0.00012876,2]
[339045984,1727173842904,-601.68107257,0.00012876,2]
[339045986,1727173842914,-2231.48,0.00012876,2]
[339045988,1727173842924,-505.86669236,0.00012876,2]
[339045990,1727173842934,-500.0,0.00012876,2]
[339045992,1727173842943,-494.2908861,0.00012876,2]
[339045995,1727173842953,-500.0,0.00012876,2]
[339045997,1727173842963,-500.0,0.00012876,2]
[339045999,1727173842973,-401.81374437,0.00012876,2]
[339046001,1727173842983,-500.0,0.00012876,2]
[339046003,1727173842992,-500.0,0.00012876,2]
[339046005,1727173843001,-1087.73,0.00012876,2]
[339046007,1727173843013,-506.29,0.00012876,2]
[339046009,1727173843023,-500.0,0.00012876,2]
[339046010,1727173843032,-500.0,0.00012876,2]
[339046012,1727173843042,-1658.58,0.00012876,2]
[339046014,1727173843051,-500.0,0.00012876,2]
[339046017,1727173843061,-500.0,0.00012876,2]
[339046019,1727173843070,-500.0,0.00012876,2]
[339046020,1727173843079,-683.55,0.00012876,2]
[339046023,1727173843088,-500.0,0.00012876,2]
[339046026,1727173843097,-500.0,0.00012876,2]
[339046029,1727173843107,-1436.99,0.00012876,2]
[339046032,1727173843116,-675.68,0.00012876,2]
[339046034,1727173843126,-500.0,0.00012876,2]
[339046036,1727173843135,-152.81,0.0001288,2]
[339046038,1727173843144,-150.0,0.00012885,2]
[339046040,1727173843154,-500.0,0.00012889,2]
[339046042,1727173843164,-500.0,0.00012889,2]
[339046044,1727173843174,-500.0,0.00012889,2]
[339046046,1727173843183,-500.0,0.00012889,2]
[339046048,1727173843192,-500.0,0.00012889,2]